fUSD/lending_fUSD_20240129
["ID","MTS","AMOUNT","RATE_DAILY","PERIOD"]
[312982171,1706562652604,-500.0,0.00052054,31]
[312982172,1706562652613,-500.0,0.00052054,31]
[312982173,1706562652623,-508.14,0.00052054,31]
[312982174,1706562652632,-325.66413626,0.00052054,20]
[312982175,1706562652642,-176.37364988,0.00052054,31]
[312982176,1706562652652,-513.8185698,0.00052054,5]
[312982177,1706562652661,-479.85054823,0.00052054,31]
[312982178,1706562652670,-544.71566838,0.00052054,31]
[312982179,1706562652679,-500.0,0.00052054,31]
[312982180,1706562652689,-500.0,0.00052054,31]
[312982181,1706562652698,-500.0,0.00052054,31]
[312982182,1706562652707,-647.4453147,0.00052054,31]
[312982183,1706562652716,-500.0,0.00052054,31]
[312982184,1706562652725,-500.0,0.00052054,31]
[312982185,1706562652734,-500.0,0.00052054,31]
[312982186,1706562652743,-500.0,0.00052054,31]
[312982187,1706562652752,-246.57381843,0.00052054,31]
[312982188,1706562652761,-516.0,0.00052054,31]
[312982189,1706562652770,-500.0,0.00052054,15]
[312982190,1706562652779,-500.0,0.00052054,31]
[312982191,1706562652789,-500.0,0.00052054,31]
[312982192,1706562652798,-500.0,0.00052054,31]
[312982193,1706562652807,-500.0,0.00052054,31]
[312982194,1706562652817,-500.0,0.00052054,31]
[312982195,1706562652826,-500.0,0.00052054,31]
[312982196,1706562652835,-500.0,0.00052054,31]
[312982197,1706562652844,-306.00323905,0.00052054,31]
[312982198,1706562652853,-500.0,0.00052054,31]
[312982199,1706562652862,-500.0,0.00052054,31]
[312982200,1706562652871,-500.0,0.00052054,31]
[312982201,1706562652880,-584.65,0.00052054,2]
[312982202,1706562652891,-3813.28,0.00052054,31]
[312982203,1706562652901,-286.97333665,0.00052054,31]
[312982204,1706562652910,-500.0,0.00052054,31]
[312982205,1706562652920,-500.0,0.00052054,31]
[312982206,1706562652929,-500.0,0.00052054,31]
[312982207,1706562652939,-500.0,0.00052054,31]
[312982208,1706562652949,-500.0,0.00052054,31]
[312982209,1706562652958,-500.0,0.00052054,31]
[312982210,1706562652967,-500.0,0.00052054,31]
[312982211,1706562652977,-500.0,0.00052054,31]
[312982212,1706562652987,-500.0,0.00052054,31]
[312982213,1706562652998,-326.63693793,0.00052054,31]
[312982214,1706562653008,-500.0,0.00052054,31]
[312982215,1706562653018,-248.91384771,0.00052054,31]
[312982216,1706562653029,-444.92015872,0.00052054,31]
[312982217,1706562653040,-500.0,0.00052054,31]
[312982218,1706562653050,-678.76,0.00052054,31]
[312982219,1706562653061,-517.50359103,0.00052054,31]
[312982220,1706562653070,-810.75,0.00052054,31]
[312982221,1706562653080,-500.0,0.00052054,31]
[312982222,1706562653091,-551.76296523,0.00052054,31]
[312982223,1706562653102,-312.20625349,0.00052054,31]
[312982224,1706562653111,-500.0,0.00052054,31]
[312982225,1706562653122,-1315.92,0.00052054,31]
[312982226,1706562653131,-539.31576618,0.00052054,31]
[312982227,1706562653141,-500.0,0.00052054,2]
[312982228,1706562653152,-500.0,0.00052054,31]
[312982229,1706562653163,-597.70462773,0.00052054,31]
[312982230,1706562653173,-500.0,0.00052054,31]
[312982231,1706562653183,-500.0,0.00052054,31]
[312982232,1706562653192,-500.0,0.00052054,31]
[312982233,1706562653201,-500.0,0.00052054,31]
[312982234,1706562653210,-606.78489994,0.00052054,31]
[312982235,1706562653218,-500.0,0.00052054,31]
[312982236,1706562653228,-530.82069171,0.00052054,31]
[312982237,1706562653237,-500.0,0.00052054,31]
[312982238,1706562653246,-510.33549797,0.00052054,31]
[312982239,1706562653255,-530.45326493,0.00052054,31]
[312982240,1706562653263,-524.90300057,0.00052054,31]
[312982241,1706562653272,-500.0,0.00052054,31]
[312982242,1706562653281,-522.19244901,0.00052054,31]
[312982243,1706562653290,-500.0,0.00052054,31]
[312982244,1706562653301,-500.0,0.00052054,31]
[312982245,1706562653311,-548.4612942,0.00052054,31]
[312982246,1706562653322,-557.67117837,0.00052054,31]
[312982247,1706562653334,-152.43187862,0.00052054,31]
[312982248,1706562653343,-500.0,0.00052054,31]
[312982249,1706562653352,-583.53742924,0.00052054,31]
[312982250,1706562653362,-518.73676404,0.00052054,31]
[312982251,1706562653371,-1000.0,0.00052054,2]
[312982252,1706562653380,-500.0,0.00052054,31]
[312982253,1706562653391,-500.0,0.00052054,31]
[312982254,1706562653531,-437.50048058,0.00052054,31]
[312982255,1706562653559,-500.0,0.00052054,31]
[312982256,1706562653570,-500.0,0.00052054,31]
[312982257,1706562653579,-500.0,0.00052054,31]
[312982258,1706562653588,-500.0,0.00052054,120]
[312982259,1706562653598,-205.79485314,0.00052054,31]
[312982260,1706562653607,-500.0,0.00052054,31]
[312982261,1706562653618,-1137.15,0.00052054,31]
[312982262,1706562653628,-500.0,0.00052054,31]
[312982263,1706562653638,-500.0,0.00052054,31]
[312982264,1706562653647,-842.32,0.00052054,31]
[312982265,1706562653657,-729.95,0.00052054,31]
[312982266,1706562653666,-500.0,0.00052054,31]
[312982267,1706562653675,-500.0,0.00052054,31]
[312982268,1706562653685,-3314.2,0.00052054,31]
[312982269,1706562653694,-500.0,0.00052054,31]
[312982270,1706562653703,-1404.56,0.00052054,31]
[312982271,1706562653712,-500.0,0.00052054,31]
[312982272,1706562653721,-500.0,0.00052054,31]
[312982273,1706562653730,-500.0,0.00052054,31]
[312982274,1706562653739,-1228.34,0.00052054,31]
[312982275,1706562653748,-212.5388454,0.00052054,31]
[312982276,1706562653758,-500.0,0.00052054,31]
[312982277,1706562653767,-296.9205369,0.00052054,31]
[312982278,1706562653776,-2951.99,0.00052054,31]
[312982279,1706562653785,-500.0,0.00052054,31]
[312982280,1706562653794,-2217.15,0.00052054,31]
[312982281,1706562653803,-500.0,0.00052054,14]
[312982282,1706562653812,-504.18013214,0.00052054,31]
[312982283,1706562653821,-5861.0,0.00052054,31]
[312982284,1706562653830,-500.0,0.00052054,31]
[312982285,1706562653839,-904.42,0.00052054,31]
[312982286,1706562653848,-514.92,0.00052054,31]
[312982287,1706562653857,-500.0,0.00052054,31]
[312982288,1706562653866,-4123.05,0.00052054,31]
[312982289,1706562653875,-500.0,0.00052054,31]
[312982290,1706562653884,-500.0,0.00052054,31]
[312982291,1706562653893,-834.68,0.00052054,31]
[312982292,1706562653902,-500.0,0.00052054,31]
[312982293,1706562653911,-500.0,0.00052054,31]
[312982294,1706562653920,-500.0,0.00052054,31]
[312982295,1706562653929,-500.0,0.00052054,31]
[312982296,1706562653938,-500.0,0.00052054,31]
[312982297,1706562653948,-500.0,0.00052054,31]
[312982298,1706562653959,-500.0,0.00052054,31]
[312982299,1706562653968,-2352.21,0.00052054,5]
[312982300,1706562653978,-808.55,0.00052054,31]
[312982301,1706562653989,-872.42,0.00052054,31]
[312982302,1706562653999,-500.0,0.00052054,31]
[312982303,1706562654009,-500.0,0.00052054,31]
[312982304,1706562654020,-1072.78,0.00052054,31]
[312982305,1706562654030,-768.15,0.00052054,31]
[312982306,1706562654041,-500.0,0.00052054,31]
[312982307,1706562654051,-848.92,0.00052054,31]
[312982308,1706562654061,-500.0,0.00052054,31]
[312982309,1706562654071,-1057.66,0.00052054,31]
[312982310,1706562654080,-1366.69,0.00052054,31]
[312982311,1706562654091,-500.0,0.00052054,31]
[312982312,1706562654101,-500.0,0.00052054,31]
[312982313,1706562654110,-500.0,0.00052054,31]
[312982314,1706562654121,-500.0,0.00052054,31]
[312982315,1706562654130,-664.14,0.00052054,31]
[312982316,1706562654139,-500.0,0.00052054,31]
[312982317,1706562654149,-1682.7,0.00052054,7]
[312982318,1706562654159,-777.18,0.00052054,31]
[312982319,1706562654168,-500.0,0.00052054,31]
[312982320,1706562654178,-500.0,0.00052054,31]
[312982321,1706562654187,-856.53,0.00052054,31]
[312982322,1706562654197,-500.0,0.00052054,31]
[312982323,1706562654207,-1646.94,0.00052054,31]
[312982324,1706562654218,-988.88,0.00052054,31]
[312982325,1706562654230,-219.08636579,0.00052054,31]
[312982326,1706562654239,-500.0,0.00052054,31]
[312982327,1706562654250,-1527.83,0.00052054,31]
[312982328,1706562654261,-500.0,0.00052054,31]
[312982329,1706562654272,-500.0,0.00052054,31]
[312982330,1706562654282,-790.42,0.00052054,31]
[312982331,1706562654291,-1019.27,0.00052054,31]
[312982332,1706562654302,-1734.17,0.00052054,31]
[312982333,1706562654312,-548.48,0.00052054,31]
[312982334,1706562654323,-500.0,0.00052054,31]
[312982335,1706562654332,-1982.35,0.00052054,31]
[312982336,1706562654342,-531.18,0.00052054,31]
[312982337,1706562654353,-837.06,0.00052054,31]
[312982338,1706562654362,-900.36,0.00052054,31]
[312982339,1706562654371,-222.33176668,0.00052054,31]
[312982340,1706562654380,-500.0,0.00052054,31]
[312982341,1706562654391,-500.0,0.00052054,31]
[312982342,1706562654401,-861.81,0.00052054,31]
[312982343,1706562654412,-1065.22,0.00052054,31]
[312982344,1706562654421,-500.0,0.00052054,31]
[312982345,1706562654432,-526.99,0.00052054,31]
[312982346,1706562654443,-3233.79,0.00052054,31]
[312982347,1706562654453,-500.0,0.00052054,31]
[312982348,1706562654465,-500.0,0.00052054,31]
[312982349,1706562654474,-562.5,0.00052054,120]
[312982350,1706562654483,-500.0,0.00052054,31]
[312982351,1706562654492,-500.0,0.00052054,31]
[312982352,1706562654502,-770.21,0.00052054,31]
[312982353,1706562654511,-404.81307189,0.00052054,31]
[312982354,1706562654520,-500.0,0.00052054,31]
[312982355,1706562654529,-1898.91,0.00052054,31]
[312982356,1706562654539,-500.0,0.00052054,31]
[312982357,1706562654550,-500.0,0.00052054,31]
[312982358,1706562654559,-500.0,0.00052054,31]
[312982359,1706562654568,-500.0,0.00052054,31]
[312982360,1706562654578,-1120.72,0.00052054,31]
[312982361,1706562654587,-500.0,0.00052054,31]
[312982362,1706562654597,-1947.76,0.00052054,31]
[312982363,1706562654607,-3565.46,0.00052054,31]
[312982364,1706562654617,-591.24,0.00052054,31]
[312982365,1706562654628,-3131.4,0.00052054,31]
[312982366,1706562654637,-760.81,0.00052054,31]
[312982367,1706562654647,-500.0,0.00052054,31]
[312982368,1706562654657,-662.72,0.00052054,31]
[312982369,1706562654668,-500.0,0.00052054,31]
[312982370,1706562654680,-500.0,0.00052054,31]
[312982371,1706562654689,-806.17,0.00052054,31]
[312982372,1706562654699,-500.0,0.00052054,31]
[312982373,1706562654709,-500.0,0.00052054,14]
[312982374,1706562654719,-500.0,0.00052054,31]
[312982375,1706562654729,-500.0,0.00052054,31]
[312982376,1706562654739,-500.0,0.00052054,31]
[312982377,1706562654748,-751.56,0.00052054,31]
[312982378,1706562654758,-500.0,0.00052054,31]
[312982379,1706562654768,-500.0,0.00052054,31]
[312982380,1706562654778,-326.54575701,0.00052054,31]
[312982381,1706562654787,-500.0,0.00052054,31]
[312982382,1706562654797,-533.14,0.00052054,31]
[312982383,1706562654807,-500.0,0.00052054,31]
[312982384,1706562654817,-169.06905874,0.00052054,31]
[312982385,1706562654827,-500.0,0.00052054,31]
[312982386,1706562654837,-500.0,0.00052054,31]
[312982387,1706562654847,-1270.54,0.00052054,31]
[312982388,1706562654857,-1323.4,0.00052054,31]
[312982389,1706562654868,-1029.27,0.00052054,31]
[312982390,1706562654882,-991.32,0.00052054,31]
[312982391,1706562654891,-500.0,0.00052054,31]
[312982392,1706562654901,-311.29383316,0.00052054,31]
[312982393,1706562654911,-500.0,0.00052054,31]
[312982394,1706562654920,-1953.23,0.00052054,31]
[312982395,1706562654931,-500.0,0.00052054,31]
[312982396,1706562654941,-500.0,0.00052054,31]
[312982397,1706562654951,-592.93,0.00052054,31]
[312982398,1706562654963,-500.0,0.00052054,31]
[312982399,1706562654973,-5461.09,0.00052054,31]
[312982400,1706562654982,-500.0,0.00052054,31]
[312982401,1706562654992,-500.0,0.00052054,31]
[312982402,1706562655002,-500.0,0.00052054,31]
[312982403,1706562655012,-500.0,0.00052054,31]
[312982404,1706562655022,-500.0,0.00052054,31]
[312982405,1706562655031,-500.0,0.00052054,31]
[312982406,1706562655040,-368.28446063,0.00052054,31]
[312982407,1706562655050,-1516.26,0.00052054,31]
[312982408,1706562655060,-500.0,0.00052054,31]
[312982409,1706562655069,-1450.85,0.00052054,31]
[312982410,1706562655079,-500.0,0.00052054,31]
[312982411,1706562655089,-7439.22,0.00052054,31]
[312982412,1706562655098,-896.98,0.00052054,31]
[312982413,1706562655108,-500.0,0.00052054,31]
[312982414,1706562655117,-1073.32,0.00052054,31]
[312982415,1706562655128,-500.0,0.00052054,31]
[312982416,1706562655144,-1105.84,0.00052054,31]
[312982417,1706562655153,-500.0,0.00052054,31]
[312982418,1706562655163,-838.35,0.00052054,31]
[312982419,1706562655172,-500.0,0.00052054,31]
[312982420,1706562655185,-1207.63,0.00052054,31]
[312982421,1706562655194,-500.0,0.00052054,31]
[312982422,1706562655203,-500.0,0.00052054,31]
[312982423,1706562655213,-2788.39,0.00052054,31]
[312982424,1706562655222,-500.0,0.00052054,31]
[312982425,1706562655232,-500.0,0.00052054,31]
[312982426,1706562655241,-500.0,0.00052054,31]
[312982427,1706562655250,-500.0,0.00052054,31]
[312982428,1706562655259,-500.0,0.00052054,31]
[312982429,1706562655268,-750.58,0.00052054,31]
[312982430,1706562655278,-500.0,0.00052054,31]
[312982431,1706562655287,-510.54,0.00052054,31]
[312982432,1706562655296,-500.0,0.00052054,31]
[312982433,1706562655305,-559.54,0.00052054,31]
[312982434,1706562655315,-3374.14,0.00052054,31]
[312982435,1706562655324,-500.0,0.00052054,31]
[312982436,1706562655334,-1076.55,0.00052054,31]
[312982437,1706562655343,-500.0,0.00052054,31]
[312982438,1706562655352,-500.0,0.00052054,31]
[312982439,1706562655361,-3128.07,0.00052054,31]
[312982440,1706562655370,-500.0,0.00052054,31]
[312982441,1706562655379,-500.0,0.00052054,31]
[312982442,1706562655389,-500.0,0.00052054,31]
[312982443,1706562655398,-7495.58,0.00052054,31]
[312982444,1706562655407,-1595.35,0.00052054,31]
[312982445,1706562655417,-500.0,0.00052054,31]
[312982446,1706562655426,-500.0,0.00052054,31]
[312982447,1706562655436,-681.92,0.00052054,31]
[312982448,1706562655445,-708.47,0.00052054,31]
[312982449,1706562655454,-519.46101916,0.00052054,31]
[312982450,1706562655464,-194.72142006,0.00052054,120]
[312982451,1706562655473,-807.3,0.00052054,31]
[312982452,1706562655482,-500.0,0.00052054,31]
[312982453,1706562655491,-533.91144612,0.00052054,31]
[312982454,1706562655501,-500.0,0.00052054,31]
[312982455,1706562655511,-748.48,0.00052054,31]
[312982456,1706562655521,-500.0,0.00052054,31]
[312982457,1706562655533,-500.0,0.00052054,31]
[312982458,1706562655543,-500.0,0.00052054,2]
[312982459,1706562655556,-595.51,0.00052054,31]
[312982460,1706562655566,-500.0,0.00052054,31]
[312982461,1706562655576,-500.0,0.00052054,31]
[312982462,1706562655586,-562.86,0.00052054,2]
[312982463,1706562655597,-1405.87,0.00052054,5]
[312982464,1706562655606,-500.0,0.00052054,31]
[312982465,1706562655616,-638.09,0.00052054,31]
[312982466,1706562655625,-500.0,0.00052054,31]
[312982467,1706562655636,-737.77,0.00052054,31]
[312982468,1706562655646,-665.71,0.00052054,31]
[312982469,1706562655655,-500.0,0.00052054,31]
[312982470,1706562655664,-1000.0,0.00052055,120]
[312982471,1706562655674,-1000.0,0.00052055,120]
[312982472,1706562655684,-1000.0,0.00052055,120]
[312982473,1706562655693,-1000.0,0.00052055,120]
[312982474,1706562655702,-1000.0,0.00052055,120]
[312982475,1706562655711,-1000.0,0.00052055,120]
[312982476,1706562655721,-521.57598546,0.00052055,120]
[312982477,1706562655731,-500.0,0.00052055,30]
[312982478,1706562655740,-400.0,0.0005207,7]
[312982479,1706562655749,-150.0,0.00052097,30]
[312982480,1706562655758,-561.4,0.00052117,30]
[312982481,1706562655768,-561.4,0.00052117,30]
[312982482,1706562655777,-561.4,0.00052117,30]
[312982483,1706562655786,-561.4,0.00052117,30]
[312982484,1706562655796,-150.0,0.00052183,30]
[312982485,1706562655806,-151.013,0.00052198,59]
[312982486,1706562655816,-1021.41116528,0.0005224,4]
[312982487,1706562655825,-150.0,0.00052248,30]
[312982488,1706562655834,-150.0,0.00052248,30]
[312982489,1706562655843,-150.0,0.0005229,30]
[312982490,1706562655852,-626.0,0.0005229,2]
[312982491,1706562655861,-585.0,0.0005229,2]
[312982492,1706562655871,-151.013,0.00052298,60]
[312982493,1706562655880,-5800.0,0.00052311,7]
[312982494,1706562655889,-5800.0,0.0005232,7]
[312982495,1706562655897,-200.0,0.00052328,31]
[312982496,1706562655906,-500.0,0.00052328,31]
[312982497,1706562655915,-500.0,0.00052328,31]
[312982498,1706562655924,-500.0,0.00052328,31]
[312982499,1706562655935,-500.0,0.00052328,31]
[312982500,1706562655945,-500.0,0.00052328,31]
[312982501,1706562655956,-500.0,0.00052328,31]
[312982502,1706562655966,-500.0,0.00052328,31]
[312982503,1706562655975,-1234.0,0.00052328,7]
[312982504,1706562655984,-500.0,0.00052328,31]
[312982505,1706562655993,-512.20740692,0.00052328,31]
[312982506,1706562656003,-300.0,0.00052328,10]
[312982507,1706562656012,-500.0,0.00052328,31]
[312982508,1706562656021,-500.0,0.00052328,7]
[312982509,1706562656030,-5800.0,0.00052328,7]
[312982510,1706562656039,-500.0,0.00052328,31]
[312982511,1706562656048,-500.0,0.00052328,7]
[312982512,1706562656057,-340.87863056,0.00052328,31]
[312982513,1706562656066,-162.02135621,0.00052328,31]
[312982514,1706562656076,-648.70007375,0.00052328,31]
[312982515,1706562656085,-500.0,0.00052328,31]
[312982516,1706562656094,-500.0,0.00052328,31]
[312982517,1706562656103,-500.0,0.00052328,31]
[312982518,1706562656112,-500.0,0.00052328,2]
[312982519,1706562656121,-500.0,0.00052328,7]
[312982520,1706562656130,-564.51,0.00052328,31]
[312982521,1706562656139,-416.3410767,0.00052328,31]
[312982522,1706562656150,-500.0,0.00052328,31]
[312982523,1706562656159,-582.0324857,0.00052328,31]
[312982524,1706562656169,-585.11,0.00052328,31]
[312982525,1706562656178,-500.0,0.00052328,31]
[312982526,1706562656188,-675.0,0.00052328,31]
[312982527,1706562656197,-379.6380477,0.00052328,31]
[312982528,1706562656206,-500.0,0.00052328,31]
[312982529,1706562656217,-500.0,0.00052328,31]
[312982530,1706562656227,-639.34661927,0.00052328,31]
[312982531,1706562656238,-584.1,0.00052328,31]
[312982532,1706562656247,-500.0,0.00052328,31]
[312982533,1706562656259,-500.0,0.00052328,2]
[312982534,1706562656268,-1000.0,0.00052328,7]
[312982535,1706562656277,-500.0,0.00052328,31]
[312982536,1706562656286,-500.0,0.00052328,31]
[312982537,1706562656295,-480.54436123,0.00052328,31]
[312982538,1706562656304,-616.21795322,0.00052328,120]
[312982539,1706562656313,-500.0,0.00052328,31]
[312982540,1706562656322,-500.0,0.00052328,31]
[312982541,1706562656331,-500.0,0.00052328,31]
[312982542,1706562656340,-500.0,0.00052328,31]
[312982543,1706562656350,-500.0,0.00052328,31]
[312982544,1706562656359,-500.0,0.00052328,31]
[312982545,1706562656368,-500.0,0.00052328,31]
[312982546,1706562656377,-500.0,0.00052328,31]
[312982547,1706562656386,-500.0,0.00052328,31]
[312982548,1706562656395,-500.0,0.00052328,31]
[312982549,1706562656405,-500.0,0.00052328,31]
[312982550,1706562656413,-1188.3,0.00052328,31]
[312982551,1706562656422,-500.0,0.00052328,31]
[312982552,1706562656431,-500.0,0.00052328,31]
[312982553,1706562656440,-590.24454403,0.00052328,31]
[312982554,1706562656449,-500.0,0.00052328,31]
[312982555,1706562656458,-500.0,0.00052328,31]
[312982556,1706562656467,-452.52877319,0.00052328,15]
[312982557,1706562656476,-500.0,0.00052328,31]
[312982558,1706562656485,-500.0,0.00052328,31]
[312982559,1706562656494,-517.7372827,0.00052328,31]
[312982560,1706562656503,-500.0,0.00052328,31]
[312982561,1706562656512,-500.0,0.00052328,31]
[312982562,1706562656521,-500.0,0.00052328,31]
[312982563,1706562656530,-500.0,0.00052328,31]
[312982564,1706562656539,-500.0,0.00052328,31]
[312982565,1706562656551,-500.0,0.00052328,31]
[312982566,1706562656561,-184.25,0.00052328,31]
[312982567,1706562656571,-753.23,0.00052328,7]
[312982568,1706562656581,-500.0,0.00052328,31]
[312982569,1706562656591,-500.0,0.00052328,31]
[312982570,1706562656600,-500.0,0.00052328,31]
[312982571,1706562656611,-500.0,0.00052328,2]
[312982572,1706562656621,-500.0,0.00052328,31]
[312982573,1706562656633,-565.37066794,0.00052328,7]
[312982574,1706562656642,-500.0,0.00052328,31]
[312982575,1706562656651,-500.0,0.00052328,31]
[312982576,1706562656661,-500.0,0.00052328,31]
[312982577,1706562656670,-596.02944421,0.00052328,31]
[312982578,1706562656680,-500.0,0.00052328,31]
[312982579,1706562656690,-310.96874178,0.00052328,31]
[312982580,1706562656699,-500.0,0.00052328,31]
[312982581,1706562656709,-525.71004361,0.00052328,31]
[312982582,1706562656718,-500.0,0.00052328,31]
[312982583,1706562656727,-1008.73,0.00052328,31]
[312982584,1706562656737,-500.0,0.00052328,31]
[312982585,1706562656746,-500.0,0.00052328,31]
[312982586,1706562656755,-500.0,0.00052328,31]
[312982587,1706562656903,-565.23,0.00052328,2]
[312982588,1706562656913,-500.0,0.00052328,31]
[312982589,1706562656922,-500.0,0.00052328,31]
[312982590,1706562656931,-500.0,0.00052328,2]
[312982591,1706562656940,-500.0,0.00052328,31]
[312982592,1706562656949,-500.0,0.00052328,31]
[312982593,1706562656958,-500.0,0.00052328,31]
[312982594,1706562656967,-500.0,0.00052328,31]
[312982595,1706562656976,-500.0,0.00052328,31]
[312982596,1706562656986,-1395.99,0.00052328,2]
[312982597,1706562656995,-500.0,0.00052328,31]
[312982598,1706562657003,-500.0,0.00052328,31]
[312982599,1706562657013,-500.0,0.00052328,2]
[312982600,1706562657022,-653.75,0.00052328,31]
[312982601,1706562657031,-500.0,0.00052328,31]
[312982602,1706562657039,-519.11238655,0.00052328,31]
[312982603,1706562657048,-591.27519891,0.00052328,31]
[312982604,1706562657057,-500.0,0.00052328,31]
[312982605,1706562657066,-500.0,0.00052328,31]
[312982606,1706562657075,-500.0,0.00052328,31]
[312982607,1706562657084,-500.0,0.00052328,31]
[312982608,1706562657093,-500.0,0.00052328,31]
[312982609,1706562657102,-500.0,0.00052328,31]
[312982610,1706562657110,-500.0,0.00052328,31]
[312982611,1706562657119,-500.0,0.00052328,31]
[312982612,1706562657128,-1000.0,0.00052328,31]
[312982613,1706562657137,-500.0,0.00052328,31]
[312982614,1706562657146,-270.10599609,0.00052328,31]
[312982615,1706562657155,-500.0,0.00052328,31]
[312982616,1706562657164,-508.14,0.00052328,31]
[312982617,1706562657173,-153.78267435,0.00052328,31]
[312982618,1706562657184,-348.02291417,0.00052328,31]
[312982619,1706562657193,-500.0,0.00052328,31]
[312982620,1706562657201,-500.0,0.00052328,31]
[312982621,1706562657210,-500.0,0.00052328,31]
[312982622,1706562657219,-500.0,0.00052328,31]
[312982623,1706562657228,-516.0,0.00052328,31]
[312982624,1706562657237,-500.0,0.00052328,15]
[312982625,1706562657246,-500.0,0.00052328,31]
[312982626,1706562657256,-576.61631571,0.00052328,31]
[312982627,1706562657265,-500.0,0.00052328,31]
[312982628,1706562657275,-584.65,0.00052328,2]
[312982629,1706562657284,-3813.28,0.00052328,31]
[312982630,1706562657294,-355.56915166,0.00052328,31]
[312982631,1706562657303,-500.0,0.00052328,31]
[312982632,1706562657312,-392.25219494,0.00052328,31]
[312982633,1706562657321,-500.0,0.00052328,31]
[312982634,1706562657330,-227.18926692,0.00052328,31]
[312982635,1706562657339,-500.0,0.00052328,31]
[312982636,1706562657349,-500.0,0.00052328,31]
[312982637,1706562657358,-500.0,0.00052328,31]
[312982638,1706562657368,-500.0,0.00052328,31]
[312982639,1706562657377,-500.0,0.00052328,31]
[312982640,1706562657386,-500.0,0.00052328,31]
[312982641,1706562657395,-678.76,0.00052328,31]
[312982642,1706562657405,-810.75,0.00052328,31]
[312982643,1706562657414,-500.0,0.00052328,31]
[312982644,1706562657425,-500.0,0.00052328,31]
[312982645,1706562657435,-1315.92,0.00052328,31]
[312982646,1706562657444,-500.0,0.00052328,2]
[312982647,1706562657454,-500.0,0.00052328,31]
[312982648,1706562657464,-500.0,0.00052328,31]
[312982649,1706562657473,-500.0,0.00052328,31]
[312982650,1706562657485,-500.0,0.00052328,31]
[312982651,1706562657495,-500.0,0.00052328,31]
[312982652,1706562657506,-500.0,0.00052328,31]
[312982653,1706562657517,-500.0,0.00052328,31]
[312982654,1706562657527,-500.0,0.00052328,31]
[312982655,1706562657538,-457.18484093,0.00052328,31]
[312982656,1706562657550,-1000.0,0.00052328,2]
[312982657,1706562657559,-272.52,0.00052328,31]
[312982658,1706562657569,-500.0,0.00052328,31]
[312982659,1706562657578,-500.0,0.00052328,31]
[312982660,1706562657587,-500.0,0.00052328,31]
[312982661,1706562657597,-500.0,0.00052328,31]
[312982662,1706562657607,-500.0,0.00052328,120]
[312982663,1706562657617,-500.0,0.00052328,31]
[312982664,1706562657629,-1137.15,0.00052328,31]
[312982665,1706562657639,-500.0,0.00052328,31]
[312982666,1706562657648,-500.0,0.00052328,31]
[312982667,1706562657658,-842.32,0.00052328,31]
[312982668,1706562657667,-729.95,0.00052328,31]
[312982669,1706562657676,-185.85383834,0.00052328,31]
[312982670,1706562657687,-500.0,0.00052328,31]